lending/lending_fUSD_20251015
["ID","MTS","AMOUNT","RATE_DAILY","PERIOD"]
[391319548,1760518231752,-1000.0,0.00014414,2]
[391319549,1760518231762,-641.0,0.00014454,2]
[391319550,1760518231771,-306.0,0.00014474,2]
[391319551,1760518231781,-168.19,0.000145,2]
[391319552,1760518231791,-168.19,0.000145,2]
[391319553,1760518231801,-199.88,0.00014528,2]
[391319554,1760518231811,-186.86,0.000146,2]
[391319555,1760518231820,-306.0,0.00014649,2]
[391319556,1760518231831,-306.0,0.00014658,2]
[391319558,1760518231841,-835.88208708,0.00014696,2]
[391319560,1760518231851,-198.95642305,0.00014696,2]
[391319562,1760518231860,-75659.90231285,0.000147,2]
[391319564,1760518231872,-30079.89926156,0.000147,2]
[391319565,1760518231885,-18400.21826745,0.000147,2]
[391319566,1760518231894,-293.72616895,0.00014709,2]
[391319567,1760518231905,-322.6107,0.00014712,2]
[391319568,1760518231915,-200.0,0.00014712,2]
[391319569,1760518231925,-168.84223589,0.00014712,2]
[391319570,1760518231934,-646.65982734,0.00014712,2]
[391319572,1760518231944,-151.0,0.00014712,2]
[391319574,1760518231953,-151.0,0.00014712,2]
[391319575,1760518231962,-151.0,0.00014712,2]
[391319576,1760518231972,-151.0,0.00014712,2]
[391319577,1760518231982,-151.0,0.00014712,2]
[391319578,1760518231991,-151.0,0.00014712,2]
[391319579,1760518232000,-151.0,0.00014712,2]
[391319580,1760518232010,-151.0,0.00014712,2]
[391319581,1760518232020,-151.0,0.00014712,2]
[391319582,1760518232029,-151.0,0.00014712,2]
[391319583,1760518232039,-151.0,0.00014712,2]
[391319584,1760518232049,-151.0,0.00014712,2]
[391319585,1760518232059,-151.0,0.00014712,2]
[391319586,1760518232068,-151.0,0.00014712,2]
[391319587,1760518232077,-151.0,0.00014712,2]
[391319588,1760518232087,-151.0,0.00014712,2]
[391319589,1760518232096,-151.0,0.00014712,2]
[391319590,1760518232105,-151.0,0.00014712,2]
[391319591,1760518232115,-151.0,0.00014712,2]
[391319592,1760518232124,-151.0,0.00014712,2]
[391319593,1760518232135,-500.0,0.00014712,2]
[391319594,1760518232145,-151.0,0.00014712,2]
[391319595,1760518232154,-500.0,0.00014712,2]
[391319596,1760518232164,-151.0,0.00014712,2]
[391319597,1760518232174,-500.0,0.00014712,2]
[391319598,1760518232184,-151.0,0.00014712,2]
[391319599,1760518232194,-500.0,0.00014712,2]
[391319600,1760518232203,-151.0,0.00014712,2]
[391319601,1760518232213,-151.0,0.00014712,2]
[391319602,1760518232222,-151.0,0.00014712,2]
[391319603,1760518232232,-151.0,0.00014712,2]
[391319604,1760518232241,-151.0,0.00014712,2]
[391319605,1760518232251,-306.0,0.00014718,2]
[391319606,1760518232260,-306.0,0.00014721,2]
[391319607,1760518232270,-489.55724592,0.0001475,2]
[391319608,1760518232279,-489.55724583,0.00014767,2]
[391319609,1760518232288,-1000.0,0.0001477,2]
[391319610,1760518232297,-5599.00294609,0.00014775,2]
[391319611,1760518232307,-489.55724583,0.00014783,2]
[391319612,1760518232317,-5599.00294608,0.00014789,2]
[391319613,1760518232326,-489.55724583,0.000148,2]
[391319614,1760518232336,-5599.00294608,0.00014803,2]
[391319615,1760518232346,-244.51212437,0.00014814,2]
[391319616,1760518232355,-297.82753152,0.00014814,2]
[391319617,1760518232365,-489.55724583,0.00014817,2]
[391319618,1760518232375,-5599.00294608,0.00014817,2]
[391319619,1760518232385,-3239.22420818,0.0001482,2]
[391319620,1760518232397,-950.70043182,0.0001482,2]
[391319621,1760518232407,-5599.00294608,0.00014831,2]
[391319622,1760518232417,-489.55724583,0.00014833,2]
[391319623,1760518232426,-297.82753152,0.00014836,2]
[391319624,1760518232436,-306.0,0.00014839,2]
[391319625,1760518232445,-5599.00294608,0.00014844,2]
[391319626,1760518232455,-2000.0,0.0001485,2]
[391319627,1760518232464,-2000.0,0.0001485,2]
[391319628,1760518232474,-2000.0,0.0001485,2]
[391319629,1760518232483,-2000.0,0.0001485,2]
[391319630,1760518232492,-2000.0,0.0001485,2]
[391319631,1760518232502,-2000.0,0.0001485,2]
[391319632,1760518232511,-2000.0,0.0001485,2]
[391319633,1760518232520,-2000.0,0.0001485,2]
[391319634,1760518232530,-2000.0,0.0001485,2]
[391319635,1760518232539,-2000.0,0.0001485,2]
[391319636,1760518232549,-2000.0,0.0001485,2]
[391319637,1760518232559,-2000.0,0.0001485,2]
[391319638,1760518232569,-2000.0,0.0001485,2]
[391319639,1760518232578,-2000.0,0.0001485,2]
[391319640,1760518232589,-2000.0,0.0001485,2]
[391319641,1760518232598,-2000.0,0.0001485,2]
[391319642,1760518232608,-2000.0,0.0001485,2]
[391319643,1760518232617,-2000.0,0.0001485,2]
[391319644,1760518232626,-2000.0,0.0001485,2]
[391319645,1760518232636,-2000.0,0.0001485,2]
[391319646,1760518232645,-2000.0,0.0001485,2]
[391319647,1760518232655,-254.70334561,0.0001485,2]
[391319648,1760518232689,-717.99160486,0.0001485,2]
[391319649,1760518232717,-502.24893493,0.0001485,2]
[391319650,1760518232729,-525.0561146,0.0001485,2]
[391319651,1760518232739,-287.88781892,0.0001485,2]
[391319654,1760518237394,-1712.11218108,0.0001485,2]
[391319655,1760518237403,-1178.668,0.0001485,2]
[391319656,1760518237412,-489.55724583,0.0001485,2]
[391319657,1760518237422,-297.82753152,0.00014857,2]
[391319658,1760518237431,-244.51212437,0.00014857,2]
[391319659,1760518237441,-5599.00294608,0.00014858,2]
[391319660,1760518237459,-156.2435457,0.0001486,2]
[391319661,1760518237468,-489.55724583,0.00014867,2]
[391319662,1760518237477,-2039.65,0.00014869,2]
[391319663,1760518237486,-323.00998445,0.00014869,2]
[391319664,1760518237495,-500.0,0.00014869,2]
[391319665,1760518237504,-500.0,0.00014869,2]
[391319666,1760518237513,-500.0,0.00014869,2]
[391319667,1760518237522,-500.0,0.00014869,2]
[391319668,1760518237532,-500.0,0.00014869,2]
[391319669,1760518237542,-500.0,0.00014869,2]
[391319670,1760518237551,-500.0,0.00014869,2]
[391319671,1760518237560,-500.0,0.00014869,2]
[391319672,1760518237569,-500.0,0.00014869,2]
[391319673,1760518237578,-500.0,0.00014869,2]
[391319674,1760518237587,-500.0,0.00014869,2]
[391319675,1760518237596,-500.0,0.00014869,2]
[391319676,1760518237605,-500.0,0.00014869,2]
[391319677,1760518237614,-500.0,0.00014869,2]
[391319678,1760518237623,-500.0,0.00014869,2]
[391319679,1760518237632,-500.0,0.00014869,2]
[391319680,1760518237641,-550.78185206,0.00014869,2]
[391319681,1760518237650,-500.0,0.00014869,2]
[391319682,1760518237664,-160.67326616,0.0001487,2]
[391319683,1760518237673,-1000.0,0.0001487,2]
[391319685,1760518237682,-1000.0,0.0001487,2]
[391319687,1760518237691,-1000.0,0.0001487,2]
[391319689,1760518237700,-1000.0,0.0001487,2]
[391319691,1760518237710,-1000.0,0.0001487,2]
[391319693,1760518237719,-1000.0,0.0001487,2]
[391319694,1760518237728,-454.89475396,0.0001487,2]
[391319696,1760518237738,-5000.0,0.0001487,2]
[391319698,1760518237747,-5599.00294608,0.00014872,2]
[391319700,1760518237756,-454.89475394,0.00014875,2]
[391319701,1760518237765,-200.0,0.00014878,2]
[391319703,1760518237774,-297.82753152,0.00014879,2]
[391319705,1760518237783,-454.89475394,0.0001488,2]
[391319707,1760518237792,-156.24354569,0.0001488,2]
[391319709,1760518237802,-489.55724583,0.00014883,2]
[391319710,1760518237811,-454.89475394,0.00014885,2]
[391319711,1760518237823,-3043.8023,0.00014885,2]
[391319712,1760518237832,-244.51212437,0.00014886,2]
[391319713,1760518237841,-5599.00294608,0.00014886,2]
[391319714,1760518237850,-454.89475394,0.0001489,2]
[391319715,1760518237860,-1000.0,0.00014895,2]
[391319716,1760518237869,-1000.0,0.00014895,2]
[391319717,1760518237878,-1000.0,0.00014895,2]
[391319718,1760518237886,-1000.0,0.00014895,2]
[391319719,1760518237895,-454.89475394,0.00014895,2]
[391319720,1760518237905,-3210.518,0.00014896,2]
[391319721,1760518237914,-163.06014578,0.00014899,2]
[391319722,1760518237923,-189.17364428,0.000149,2]
[391319723,1760518237932,-500.0,0.000149,2]
[391319724,1760518237941,-500.0,0.000149,2]
[391319725,1760518237950,-500.0,0.000149,2]
[391319726,1760518237959,-500.0,0.000149,2]
[391319727,1760518237968,-185.65238662,0.000149,2]
[391319728,1760518237977,-164.02647209,0.000149,2]
[391319729,1760518237986,-176.652,0.000149,2]
[391319730,1760518237995,-489.55724583,0.000149,2]
[391319731,1760518238004,-454.89475394,0.000149,2]
[391319732,1760518238405,-297.82753152,0.000149,2]
[391319733,1760518238414,-156.24354569,0.000149,2]
[391319734,1760518238424,-5599.00294608,0.000149,2]
[391319735,1760518238434,-150.93202387,0.00014958,2]
[391319736,1760518238443,-164.49786615,0.00014958,2]
[391319737,1760518238452,-500.0,0.00014958,2]
[391319738,1760518238461,-500.0,0.00014958,2]
[391319739,1760518238470,-150.0,0.00014958,2]
[391319740,1760518238480,-500.0,0.00014958,2]
[391319741,1760518238489,-150.0,0.00014958,2]
[391319742,1760518238498,-150.0,0.00014958,2]
[391319743,1760518238507,-300.0,0.00014958,2]
[391319744,1760518238516,-500.0,0.00014958,2]
[391319745,1760518238525,-150.0,0.00014958,2]
[391319746,1760518238534,-500.0,0.00014958,2]
[391319747,1760518238548,-500.0,0.00014958,2]
[391319748,1760518238558,-299.0,0.00014958,2]
[391319749,1760518238568,-4189.92465,0.0001496,2]
[391319750,1760518238577,-176.21513482,0.0001496,2]
[391319751,1760518238586,-172.1465731,0.00014965,2]
[391319752,1760518238595,-6280.083445,0.00014965,2]
[391319753,1760518238605,-3016.850593,0.00014965,2]
[391319754,1760518238614,-1106.4057318,0.00014965,2]
[391319755,1760518238624,-626.846585,0.00014965,2]
[391319756,1760518238633,-626.846585,0.00014965,2]
[391319757,1760518238642,-626.846585,0.00014965,2]
[391319758,1760518238651,-626.846585,0.00014965,2]
[391319759,1760518238664,-222.296716,0.00014965,2]
[391319760,1760518238673,-1067.3594829,0.00014965,2]
[391319761,1760518238683,-222.296716,0.00014965,2]
[391319762,1760518238692,-151.0,0.00014965,2]
[391319763,1760518238701,-222.296716,0.00014965,2]
[391319764,1760518238711,-151.0,0.00014965,2]
[391319765,1760518238720,-222.296716,0.00014965,2]
[391319766,1760518238730,-3009.537278,0.00014965,2]
[391319767,1760518238741,-3009.537278,0.00014965,2]
[391319768,1760518238750,-3009.537278,0.00014965,2]
[391319769,1760518238759,-3009.537278,0.00014965,2]
[391319770,1760518238769,-424.338649,0.00014965,2]
[391319771,1760518238778,-424.338649,0.00014965,2]
[391319772,1760518238788,-424.338649,0.00014965,2]
[391319773,1760518238797,-154.163329,0.00014965,2]
[391319774,1760518238808,-424.338649,0.00014965,2]
[391319775,1760518238817,-154.163329,0.00014965,2]
[391319776,1760518238827,-151.0,0.00014965,2]
[391319777,1760518238836,-154.163329,0.00014965,2]
[391319778,1760518238845,-151.0,0.00014965,2]
[391319779,1760518238854,-154.163329,0.00014965,2]
[391319780,1760518238863,-151.0,0.00014965,2]
[391319781,1760518238873,-151.0,0.00014965,2]
[391319782,1760518238883,-151.0,0.00014965,2]
[391319783,1760518238893,-151.0,0.00014965,2]
[391319784,1760518238903,-276.555122,0.00014965,2]
[391319785,1760518238912,-155.695325,0.00014965,2]
[391319786,1760518238922,-151.0,0.00014965,2]
[391319787,1760518238931,-151.0,0.00014965,2]
[391319788,1760518238940,-521.868449,0.00014965,2]
[391319789,1760518238950,-521.868449,0.00014965,2]
[391319790,1760518238959,-521.868449,0.00014965,2]
[391319791,1760518238968,-151.0,0.00014965,2]
[391319792,1760518238978,-220.283085,0.00014965,2]
[391319793,1760518238987,-521.868449,0.00014965,2]
[391319794,1760518238996,-220.283085,0.00014965,2]
[391319795,1760518239006,-151.0,0.00014965,2]
[391319796,1760518239016,-530.537202,0.00014965,2]
[391319797,1760518239026,-530.537202,0.00014965,2]
[391319798,1760518239035,-151.0,0.00014965,2]
[391319799,1760518239045,-178.540013,0.00014965,2]
[391319800,1760518239054,-530.537202,0.00014965,2]
[391319801,1760518239063,-151.0,0.00014965,2]
[391319802,1760518239073,-220.283085,0.00014965,2]
[391319803,1760518239083,-178.540013,0.00014965,2]
[391319804,1760518239091,-530.537202,0.00014965,2]
[391319805,1760518239101,-151.0,0.00014965,2]
[391319806,1760518239111,-151.0,0.00014965,2]
[391319807,1760518239121,-220.283085,0.00014965,2]
[391319808,1760518239130,-151.0,0.00014965,2]
[391319809,1760518239140,-178.540013,0.00014965,2]
[391319810,1760518239150,-200.596308,0.00014965,2]
[391319811,1760518239160,-178.540013,0.00014965,2]
[391319812,1760518239169,-151.0,0.00014965,2]
[391319813,1760518239179,-151.0,0.00014965,2]
[391319814,1760518239188,-151.0,0.00014965,2]
[391319816,1760518239197,-230.28006,0.00014965,2]
[391319817,1760518239207,-151.0,0.00014965,2]
[391319818,1760518239218,-151.0,0.00014965,2]
[391319819,1760518239228,-230.28006,0.00014965,2]
[391319820,1760518239236,-174.297003,0.00014965,2]
[391319821,1760518239246,-151.0,0.00014965,2]
[391319822,1760518239255,-151.0,0.00014965,2]
[391319823,1760518239264,-151.0,0.00014965,2]
[391319824,1760518239274,-275.307607,0.00014965,2]
[391319825,1760518239283,-230.28006,0.00014965,2]
[391319826,1760518239292,-174.297003,0.00014965,2]
[391319827,1760518239303,-151.0,0.00014965,2]
[391319829,1760518239313,-151.0,0.00014965,2]
[391319830,1760518239322,-230.28006,0.00014965,2]
[391319831,1760518239332,-174.297003,0.00014965,2]
[391319832,1760518239341,-151.0,0.00014965,2]
[391319833,1760518239350,-174.297003,0.00014965,2]
[391319834,1760518239360,-151.0,0.00014965,2]
[391319835,1760518239370,-151.0,0.00014965,2]
[391319836,1760518239380,-151.0,0.00014965,2]
[391319837,1760518239389,-151.0,0.00014965,2]
[391319838,1760518239398,-151.0,0.00014965,2]
[391319839,1760518239407,-151.0,0.00014965,2]
[391319840,1760518239417,-345.687492,0.00014965,2]
[391319841,1760518239427,-151.0,0.00014965,2]
[391319842,1760518239436,-345.687492,0.00014965,2]
[391319843,1760518239446,-345.687492,0.00014965,2]
[391319844,1760518239455,-345.687492,0.00014965,2]
[391319845,1760518239464,-151.0,0.00014965,2]
[391319846,1760518239474,-151.0,0.00014965,2]
[391319847,1760518239483,-151.0,0.00014965,2]
[391319848,1760518239492,-151.0,0.00014965,2]
[391319849,1760518239502,-151.0,0.00014965,2]
[391319850,1760518239512,-151.0,0.00014965,2]
[391319851,1760518239522,-3682.595845,0.00014965,2]
[391319852,1760518239531,-503.54011792,0.00014965,2]
[391319853,1760518239545,-593.41340116,0.00014965,2]
[391319854,1760518239782,-468.1881886,0.000149,2]
[391319856,1760518239791,-722.63793304,0.00014965,2]
[391319857,1760518239803,-1863.00439288,0.00014965,2]
[391319858,1760518239812,-151.0,0.00014965,2]
[391319860,1760518239822,-804.47779818,0.00014965,2]
[391319864,1760518239847,-302.17412442,0.00014965,2]
[391319866,1760518239857,-502.29884863,0.00014965,2]
[391319868,1760518239868,-422.79403706,0.00014965,2]
[391319870,1760518239879,-547.03466666,0.00014965,2]
[391319872,1760518239890,-1103.81637005,0.00014965,2]
[391319874,1760518239899,-1107.58362995,0.00014965,2]
[391319876,1760518239911,-95.14871805,0.00014965,2]
[391319878,1760518239921,-3682.595845,0.00014965,2]
[391319880,1760518239930,-151.0,0.00014965,2]
[391319882,1760518239939,-1202.732348,0.00014965,2]
[391319884,1760518239948,-151.0,0.00014965,2]
[391319885,1760518239957,-1202.732348,0.00014965,2]
[391319886,1760518239967,-422.415739,0.00014965,2]
[391319887,1760518239976,-1202.732348,0.00014965,2]
[391319888,1760518239985,-422.415739,0.00014965,2]
[391319889,1760518239994,-422.415739,0.00014965,2]
[391319890,1760518240005,-422.415739,0.00014965,2]
[391319891,1760518240014,-159.893296,0.00014965,2]
[391319892,1760518240024,-195.0,0.00014969,2]
[391319893,1760518240034,-1021.39320937,0.00014969,2]
[391319894,1760518240044,-151.0,0.00014969,2]
[391319895,1760518240054,-151.0,0.00014969,2]
[391319896,1760518240063,-151.0,0.00014969,2]
[391319897,1760518240073,-151.0,0.00014969,2]
[391319898,1760518240082,-151.0,0.00014969,2]
[391319899,1760518240091,-577.673407,0.00014969,2]
[391319900,1760518240101,-151.0,0.00014969,2]
[391319901,1760518240111,-577.673407,0.00014969,2]
[391319902,1760518240120,-297.413626,0.00014969,2]
[391319903,1760518240129,-577.673407,0.00014969,2]
[391319904,1760518240139,-577.673407,0.00014969,2]
[391319905,1760518240149,-166.576573,0.00014969,2]
[391319906,1760518240159,-151.0,0.00014969,2]
[391319907,1760518240169,-151.0,0.00014969,2]
[391319908,1760518240178,-151.0,0.00014969,2]
[391319909,1760518240188,-151.0,0.00014969,2]
[391319910,1760518240197,-237.199005,0.00014969,2]
[391319911,1760518240207,-241.478532,0.00014969,2]
[391319912,1760518240216,-241.478532,0.00014969,2]
[391319913,1760518240225,-241.478532,0.00014969,2]
[391319914,1760518240234,-241.478532,0.00014969,2]
[391319915,1760518240243,-151.0,0.00014969,2]
[391319916,1760518240253,-151.0,0.00014969,2]
[391319917,1760518240262,-151.0,0.00014969,2]
[391319918,1760518240272,-151.0,0.00014969,2]
[391319919,1760518240282,-151.0,0.00014969,2]
[391319920,1760518240292,-151.0,0.00014969,2]
[391319921,1760518240302,-151.0,0.00014969,2]
[391319922,1760518240311,-1054.527027,0.00014969,2]
[391319923,1760518240320,-1054.527027,0.00014969,2]
[391319924,1760518240330,-1054.527027,0.00014969,2]
[391319925,1760518240339,-538.738004,0.00014969,2]
[391319926,1760518240348,-171.55918,0.00014969,2]
[391319927,1760518240359,-1054.527027,0.00014969,2]
[391319928,1760518240368,-538.738004,0.00014969,2]
[391319929,1760518240377,-171.55918,0.00014969,2]
[391319930,1760518240387,-538.738004,0.00014969,2]
[391319931,1760518240397,-171.55918,0.00014969,2]
[391319932,1760518240406,-538.738004,0.00014969,2]
[391319933,1760518240415,-171.55918,0.00014969,2]
[391319934,1760518240424,-182.784996,0.00014969,2]
[391319935,1760518240433,-182.784996,0.00014969,2]
[391319936,1760518240442,-182.784996,0.00014969,2]
[391319937,1760518240452,-182.784996,0.00014969,2]
[391319938,1760518240461,-155.482,0.00014969,2]
[391319939,1760518240470,-666.0,0.00014969,2]
[391319940,1760518240480,-786.0,0.0001497,2]
[391319941,1760518240489,-66796.72972746,0.0001497,3]
[391319942,1760518240501,-524.46649703,0.0001497,3]
[391319943,1760518240511,-13349.79592152,0.0001497,3]
[391319944,1760518240535,-829.48879285,0.0001497,3]
[391319945,1760518240547,-418.575497,0.0001497,3]
[391319946,1760518240559,-6170.25,0.0001497,3]
[391319947,1760518240571,-4827.5317327,0.0001497,3]
[391319948,1760518240582,-500.0,0.0001497,3]
[391319949,1760518240594,-10409.9999995,0.0001497,3]
[391319951,1760518242463,-151.0,0.00014965,2]
[391319953,1760518242473,-159.893296,0.00014965,2]
[391319955,1760518242483,-565.583981,0.00014965,2]
[391319956,1760518242492,-159.893296,0.00014965,2]
[391319957,1760518242501,-426.15872133,0.00014965,2]
[391319958,1760518242513,-139.42525967,0.00014965,2]
[391319959,1760518242522,-2171.57474033,0.0001497,2]
[391319960,1760518242600,-179.71596332,0.00014969,2]
[391319961,1760518242610,-500.0,0.00014969,2]
[391319962,1760518242619,-1477.24002767,0.0001497,2]
[391319963,1760518242639,-11116.22838967,0.0001497,2]
[391319964,1760518242648,-11129.45838104,0.0001497,3]
[391319965,1760518242664,-112633.95277171,0.0001497,3]
[391319966,1760518242686,-348.50301531,0.0001497,3]
[391319967,1760518242706,-16268.7998,0.0001497,3]
[391319972,1760518245558,-159.893296,0.00014965,2]
[391319973,1760518245568,-104.07995391,0.00014965,2]
[391319974,1760518245920,-375.91012899,0.00014965,2]
[391319975,1760518245931,-85.5938981,0.00014965,2]
[391319976,1760518245940,-151.0,0.00014965,2]
[391319977,1760518245949,-815.35610189,0.0001497,3]
[391320011,1760518765397,1000.0,0.00030233,30]
[391320012,1760518766186,1000.0,0.00030233,30]
[391320016,1760518866008,-200.0,0.00016438,30]
[391320017,1760518868854,-200.0,0.00016438,30]
[391320018,1760518872274,-200.0,0.00016438,30]
[391320019,1760518879636,-200.0,0.00016438,30]
[391320020,1760518881258,-200.0,0.00016438,30]
[391320021,1760518883490,-200.0,0.00016438,30]
[391320022,1760518890560,-200.0,0.00016438,30]
[391320023,1760518893050,-200.0,0.00016438,30]
[391320024,1760518895302,-200.0,0.00016438,30]
[391320025,1760518897080,-200.0,0.00016438,30]
[391320026,1760518899216,-200.0,0.00016438,30]
[391320027,1760518901394,-200.0,0.00016438,30]
[391320035,1760518912510,-200.0,0.00016438,30]
[391320036,1760518914809,-200.0,0.00016438,30]
[391320038,1760518936571,-63.55,0.00016438,30]
[391320039,1760518936653,-136.45,0.0002,30]
[391320044,1760518984264,529.83,0.000273,120]
[391320045,1760519005024,500.0,0.00025999,120]
[391320047,1760519062699,-200.0,0.0002,30]
[391320048,1760519064913,-200.0,0.0002,30]
[391320049,1760519069124,-200.0,0.0002,30]
[391320050,1760519074314,-200.0,0.0002,30]
[391320051,1760519087528,-200.0,0.0002,30]
[391320054,1760519155201,160.38,0.00027397,120]
[391320056,1760519247336,-200.0,0.0002,30]
[391320058,1760519250700,-200.0,0.0002,30]
[391320059,1760519255171,-200.0,0.0002,30]
[391320060,1760519261222,-200.0,0.0002,30]
[391320062,1760519264387,-200.0,0.0002,30]
[391320063,1760519266602,-200.0,0.0002,30]
[391320064,1760519268668,-200.0,0.0002,30]
[391320065,1760519269896,-200.0,0.0002,30]
[391320066,1760519278098,-200.0,0.0002,30]
[391320067,1760519286853,-121.21227238,0.0002,30]
[391320068,1760519286878,-78.78772762,0.0002,30]
[391320073,1760519407522,167.0,0.00022498,120]
[391320082,1760519431665,-1461.59691828,0.00013698,2]
[391320083,1760519431674,-2000.0,0.00013698,2]
[391320084,1760519431684,-578.35,0.00013699,2]
[391320085,1760519431693,-774.17236047,0.00013856,2]
[391320086,1760519431702,-200.0,0.00013902,2]
[391320087,1760519431712,-166.69,0.00013989,2]
[391320088,1760519431721,-200.0,0.00013991,2]
[391320089,1760519431731,-250.0,0.00013991,7]
[391320090,1760519431740,-1600.0,0.00013991,2]
[391320091,1760519431749,-921.25518146,0.00013991,2]
[391320092,1760519431759,-1200.0,0.00014102,2]
[391320093,1760519431768,-2637.53,0.00014103,2]
[391320094,1760519431777,-300.0,0.00014402,2]
[391320095,1760519431786,-559.0,0.00014403,2]
[391320096,1760519431796,-166.67,0.00014411,2]
[391320097,1760519431805,-150.99,0.00014411,2]
[391320098,1760519431814,-191.8,0.00014485,2]
[391320099,1760519431824,-559.0,0.00014545,2]
[391320100,1760519431834,-299.99,0.00014545,2]
[391320101,1760519431844,-150.99,0.00014545,2]
[391320102,1760519431853,-2549.73,0.00014545,2]
[391320103,1760519431863,-329.93,0.00014545,2]
[391320104,1760519431872,-999.99,0.00014545,2]
[391320105,1760519431882,-1000.0,0.000146,2]
[391320106,1760519431891,-828.30141761,0.00014696,2]
[391320107,1760519431901,-277.35679052,0.00014744,2]
[391320108,1760519431910,-1054.0,0.00014753,2]
[391320109,1760519431919,-166.69,0.00014766,2]
[391320110,1760519431929,-1000.0,0.000148,2]
[391320111,1760519431938,-1000.0,0.000148,3]
[391320112,1760519431948,-1002.32,0.000148,4]
[391320113,1760519431957,-162.72,0.000148,2]
[391320114,1760519431967,-150.0,0.00014851,2]
[391320115,1760519431977,-151.0,0.00014852,2]
[391320116,1760519431986,-151.0,0.00014852,2]
[391320117,1760519431996,-151.0,0.00014852,2]
[391320118,1760519432005,-2000.0,0.00014852,2]
[391320119,1760519432015,-151.0,0.00014852,2]
[391320120,1760519432025,-1781.22567209,0.00014852,2]
[391320121,1760519432038,-151.0,0.00014852,2]
[391320122,1760519432048,-234.46004057,0.00014852,2]
[391320123,1760519432057,-200.0,0.00014852,2]
[391320124,1760519432067,-646.65982734,0.00014852,2]
[391320125,1760519432077,-151.0,0.00014852,2]
[391320126,1760519432087,-322.6107,0.00014852,2]
[391320127,1760519432096,-500.0,0.00014865,2]
[391320128,1760519432107,-200.0,0.00014865,2]
[391320129,1760519432119,-3252.8464666,0.00014869,2]
[391320130,1760519432128,-226.92094398,0.0001487,2]
[391320131,1760519432137,-160.44945976,0.0001487,2]
[391320132,1760519432147,-189.32686608,0.0001487,2]
[391320133,1760519432157,-3651.82586574,0.0001487,2]
[391320134,1760519432166,-8929.40668453,0.0001487,2]
[391320135,1760519432176,-266.48826276,0.0001487,2]
[391320136,1760519432187,-5000.0,0.0001487,2]
[391320137,1760519432197,-18647.951,0.0001487,2]
[391320138,1760519432206,-3651.82586567,0.00014873,2]
[391320139,1760519432215,-500.0,0.00014875,2]
[391320140,1760519432225,-3651.82586567,0.00014877,2]
[391320141,1760519432235,-226.92094396,0.00014878,2]
[391320142,1760519432244,-3651.82586567,0.0001488,2]
[391320143,1760519432253,-3651.82586567,0.00014883,2]
[391320144,1760519432263,-226.92094396,0.00014885,2]
[391320145,1760519432273,-178.69651892,0.00014885,2]
[391320146,1760519432282,-266.48826274,0.00014885,2]
[391320147,1760519432291,-3651.82586567,0.00014887,2]
[391320148,1760519432301,-3651.82586567,0.0001489,2]
[391320149,1760519432311,-226.92094396,0.00014893,2]
[391320150,1760519432320,-178.69651892,0.00014893,2]
[391320151,1760519432329,-3651.82586567,0.00014893,2]
[391320152,1760519432339,-3651.82586567,0.00014897,2]
[391320153,1760519432348,-226.92094396,0.000149,2]
[391320154,1760519432358,-3141.64,0.000149,2]
[391320155,1760519432368,-174.06,0.000149,2]
[391320156,1760519432377,-500.0,0.000149,2]
[391320157,1760519432386,-500.0,0.000149,2]